bitfinex-derivatives/quotes_ETHF0:USTF0_20250214
["timestamp","ask_amount","ask_price","bid_price","bid_amount"]
[1739549823709,3.2078,2719.7,2719.6,0.73522]
[1739549823911,3.94299,2719.7,2719.6,0.73522]
[1739549824119,3.2078,2719.7,2719.6,0.73522]
[1739549824919,0.00551258,2719.9,2719.8,0.73516]
[1739549825122,0.9108,2720.6,2719.7,0.8789]
[1739549825330,3.2078,2720.7,2720.1,3.2078]
[1739549825524,0.73501,2720.4,2720.2,0.73506]
[1739549825724,0.73503,2720.3,2720.1,0.73507]
[1739549825920,3.59900151,2720.6,2719.9,3.2078]
[1739549826238,3.2078,2720.4,2720.3,0.73503]
[1739549826531,3.94281,2720.4,2720.2,0.73506]
[1739549826726,0.73507,2720.2,2720.0,0.7351]
[1739549827129,0.73509,2720.1,2719.9,3.2078]
[1739549827325,3.59900151,2720.3,2719.8,0.9144]
[1739549827533,3.59900151,2720.3,2720.0,0.73509]
[1739549827831,0.73507,2720.2,2719.9,0.73514]
[1739549828329,3.59900151,2720.3,2719.8,0.9144]
[1739549828524,3.94292,2720.0,2719.8,0.73515]
[1739549828729,3.2078,2720.0,2719.3,7.86039]
[1739549828921,0.73509,2720.1,2719.9,0.73513]
[1739549829328,5.1078,2720.3,2720.2,0.73506]
[1739549829927,0.00551258,2720.5,2720.4,0.735]
[1739549830323,0.00551258,2720.5,2720.1,0.9298]
[1739549830727,0.73505,2720.3,2720.1,1.66487]
[1739549831033,0.00551258,2720.5,2720.1,0.9298]
[1739549831433,0.73514,2720.0,2719.8,0.73515]
[1739549831628,3.2078,2720.0,2719.8,0.73514]
[1739549831837,3.94293,2720.0,2719.8,0.73514]
[1739549832229,0.73513,2720.0,2719.8,0.73514]
[1739549832524,0.73522,2719.6,2719.5,0.9298]
[1739549832729,3.94302,2719.6,2719.5,0.9298]
[1739549832933,0.73525,2719.5,2719.4,0.00551258]
[1739549833328,3.2078,2719.6,2719.4,0.00551258]
[1739549833523,3.94304,2719.6,2719.4,0.74077258]
[1739549833721,3.94304,2719.6,2719.5,0.73525]
[1739549834228,3.2078,2719.9,2719.4,0.00551258]
[1739549834428,3.2078,2719.9,2719.6,0.7352]
[1739549834629,0.73518,2719.8,2719.4,0.00551258]
[1739549834837,3.2078,2719.9,2719.4,0.00551258]
[1739549835133,3.94305,2719.5,2719.4,0.00551258]
[1739549835334,3.2078,2719.5,2718.7,0.9438]
[1739549835636,0.73536,2719.1,2718.9,1.66429]
[1739549835934,3.2078,2719.2,2718.9,0.9289]
[1739549836131,3.59900151,2719.0,2718.0,3.2078]
[1739549836334,0.73556,2718.4,2718.1,1.66351]
[1739549836634,3.2078,2718.2,2717.6,0.9503]
[1739549836928,3.59900151,2718.0,2717.6,0.9503]
[1739549837134,0.73569,2717.9,2717.6,0.95581258]
[1739549837330,0.73569,2717.9,2717.6,0.00551258]
[1739549837726,0.249495,2718.0,2717.6,0.00551258]
[1739549837932,4.87689445,2718.3,2717.6,0.00551258]
[1739549837933,3.2078,2717.8,2717.6,0.00551258]
[1739549838132,3.2078,2717.8,2717.6,0.74127258]
[1739549838334,3.2078,2718.1,2717.6,0.00551258]
[1739549839138,3.2078,2717.8,2717.6,0.00551258]
[1739549839339,0.73573,2717.7,2717.6,0.00551258]
[1739549839831,0.73588,2717.2,2716.8,1.64555]
[1739549840040,0.73586,2717.3,2716.9,0.73595]
[1739549840239,0.73589,2717.2,2716.8,1.64556]
[1739549840635,3.2078,2717.3,2716.8,0.9096]
[1739549840935,0.73588,2717.2,2716.8,1.64557]
[1739549841139,3.2078,2717.3,2716.8,0.9096]
[1739549841341,0.73596,2716.9,2716.5,0.73604]
[1739549841538,0.73596,2716.9,2716.4,3.2078]
[1739549841842,0.00551258,2717.0,2716.6,0.73603]
[1739549842139,0.00551258,2717.0,2716.4,3.2078]
[1739549842330,7.13829445,2716.5,2715.5,3.2078]
[1739549842530,0.73619,2716.1,2715.7,0.73626]
[1739549842739,3.2078,2716.2,2715.5,3.2078]
[1739549843431,3.2078,2716.2,2715.5,3.94411]
[1739549843627,3.94403,2715.9,2715.5,3.94411]
[1739549843833,3.2078,2715.9,2715.6,0.73629]
[1739549844033,3.2078,2715.9,2715.7,0.73626]
[1739549844340,3.2078,2715.9,2715.6,0.73629]
[1739549844539,0.9322,2716.3,2715.4,0.9548]
[1739549844540,0.9322,2716.3,2715.8,3.2078]
[1739549844731,0.73617,2716.1,2715.5,3.2078]
[1739549844933,1.9,2716.2,2715.5,3.2078]
[1739549845134,0.73621,2716.0,2715.7,0.73627]
[1739549845337,7.13829445,2716.1,2715.5,3.2078]
[1739549845532,3.2078,2716.1,2715.5,3.2078]
[1739549845728,3.2078,2716.1,2716.0,0.73619]
[1739549845933,2.8322,2716.3,2715.5,3.2078]
[1739549846239,0.73624,2715.9,2715.6,0.7363]
[1739549846539,3.2078,2716.2,2715.5,3.2078]
[1739549846540,3.93049445,2716.1,2715.5,3.2078]
[1739549846741,3.93049445,2716.1,2715.8,0.73623]
[1739549847238,3.2078,2716.2,2715.5,3.2078]
[1739549847436,7.13829445,2716.5,2715.8,3.2078]
[1739549847639,0.97561258,2717.0,2716.1,3.2078]
[1739549847842,1.71155258,2717.0,2716.1,5.04821]
[1739549848138,0.97561258,2717.0,2716.5,0.73603]
[1739549848339,0.73595,2716.9,2716.6,0.73602]
[1739549848535,0.97561258,2717.0,2716.1,3.2078]
[1739549848737,3.2078,2716.9,2716.1,3.2078]
[1739549848931,3.2078,2716.9,2716.6,0.73601]
[1739549849133,3.2078,2716.9,2716.2,0.9556]
[1739549849338,3.2078,2716.9,2716.3,0.9676]
[1739549849539,0.00551258,2717.0,2716.9,0.73595]
[1739549850043,0.00551258,2717.0,2716.6,3.2078]
[1739549850240,0.73596,2716.9,2716.3,3.2078]
[1739549850441,0.74143258,2717.0,2716.8,0.73596]
[1739549850641,0.00551258,2717.0,2716.3,3.2078]
[1739549850941,0.00551258,2717.0,2716.3,4.1349]
[1739549851438,0.00551258,2717.0,2716.9,0.73595]
[1739549851634,0.00551258,2717.0,2716.9,3.94375]
[1739549851941,2.63666,2718.0,2717.0,1.8398]
[1739549852139,0.73575,2717.7,2717.2,3.2078]
[1739549852340,3.2078,2717.7,2717.2,3.2078]
[1739549852635,3.2078,2717.7,2716.9,3.2078]
[1739549852934,3.2078,2717.7,2717.2,3.2078]
[1739549853442,3.2078,2717.7,2717.5,0.73577]
[1739549853443,0.00552283,2717.6,2717.5,0.73577]
[1739549853741,0.00552283,2717.6,2717.5,3.94357]
[1739549853939,7.13829445,2718.5,2717.5,3.2078]
[1739549854141,0.73556,2718.4,2717.8,3.2078]
[1739549854338,9.03829445,2718.5,2717.8,3.2078]
[1739549854536,0.73568,2717.9,2717.7,0.73572]
[1739549854743,0.73568,2717.9,2717.7,0.73571]
[1739549854946,0.7357,2717.8,2717.6,0.73574]
[1739549855148,0.7357,2717.9,2717.7,0.73572]
[1739549855338,0.00552283,2718.1,2718.0,0.73565]
[1739549856248,3.93601728,2718.1,2717.2,0.8854]
[1739549856542,0.73575,2717.7,2717.2,4.0932]
[1739549856740,0.73589,2717.1,2716.9,0.73593]
[1739549856946,0.73589,2717.1,2716.3,5.95834]
[1739549856947,0.73591,2717.1,2716.3,5.95834]
[1739549857244,3.93049445,2717.2,2716.3,4.1181]
[1739549857746,0.73604,2716.6,2716.2,0.73612]
[1739549858042,3.2078,2716.6,2715.9,3.2078]
[1739549858241,0.73608,2716.5,2716.1,0.00552283]
[1739549858445,0.73606,2716.5,2716.1,0.74167283]
[1739549858650,0.73607,2716.5,2716.1,0.00552283]
[1739549858841,3.20327122,2716.6,2716.1,0.00552283]
[1739549859640,3.60836351,2716.4,2716.1,0.00552283]
[1739549859846,3.94391,2716.3,2716.1,0.00552283]
[1739549860046,5.1078,2716.3,2716.1,0.00552283]
[1739549860247,1.9,2716.3,2716.2,0.73614]
[1739549860650,3.61388634,2716.7,2716.4,0.73607]
[1739549860947,3.61388634,2716.7,2716.5,0.73605]
[1739549861148,3.61388634,2716.7,2716.1,0.00552283]
[1739549861346,0.00552283,2716.7,2716.6,0.73603]
[1739549861540,0.00552283,2716.7,2716.5,0.73604]
[1739549861736,0.00552283,2716.7,2716.6,0.73603]
[1739549861940,0.00552283,2716.7,2716.2,3.2078]
[1739549862143,0.00552283,2716.7,2716.6,0.73603]
[1739549863446,3.60836351,2717.4,2717.3,0.73584]
[1739549863652,22.4808,2718.0,2717.7,0.73571]
[1739549863854,1.9,2717.9,2717.2,1.83967]
[1739549864050,2.63569,2717.9,2717.7,0.73572]
[1739549864353,1.9,2717.9,2717.8,0.7357]
[1739549864848,0.00552283,2718.1,2718.0,0.73565]
[1739549865054,0.00552283,2718.1,2718.0,3.94345]
[1739549866049,2.83e-06,2718.1,2718.0,3.94345]
[1739549866253,2.83e-06,2718.1,2718.0,9.94345]
[1739549866549,2.83e-06,2718.1,2718.0,11.84345]
[1739549867154,2.83e-06,2718.1,2718.0,5.84345]
[1739549869062,2.83e-06,2718.1,2718.0,11.84345]
[1739549869556,2.83e-06,2718.1,2718.0,5.84345]
[1739549870054,2.83e-06,2718.1,2718.0,3.94345]
[1739549871562,2.83e-06,2718.1,2718.0,0.73565]
[1739549876867,2.83e-06,2718.1,2718.0,6.73565]
[1739549877363,2.83e-06,2718.1,2718.0,0.73565]
[1739549878059,2.83e-06,2718.1,2718.0,6.73565]
[1739549878453,2.83e-06,2718.1,2718.0,0.73565]
[1739549878655,2.83e-06,2718.1,2718.0,2.63465]
[1739549879950,2.83e-06,2718.1,2718.0,8.63465]
[1739549881863,3.93027743,2719.2,2718.0,1.899]
[1739549882062,3.93027743,2719.2,2719.1,0.73535]
[1739549882358,0.24791243,2719.5,2718.8,1.83856]
[1739549882659,0.8886,2719.9,2719.8,0.73516]
[1739549882860,1.14739292,2719.9,2719.3,3.2078]
[1739549883160,0.73533,2719.2,2719.1,0.73533]
[1739549883362,5.84207,2719.4,2719.3,0.00552283]
[1739549883658,9.60824774,2719.4,2718.7,1.83866]
[1739549883855,1.899,2719.4,2719.3,0.7353]
[1739549884056,3.60074774,2719.7,2719.6,0.73522]
[1739549884057,4.33594774,2719.7,2719.6,0.73522]
[1739549884252,4.33594774,2719.7,2718.7,3.67727]
[1739549884253,0.73526,2719.5,2719.4,0.73524]
[1739549884563,0.73526,2719.5,2719.1,0.73533]
[1739549884564,0.73534,2719.2,2719.1,0.73533]
[1739549884757,3.94306,2719.5,2719.4,0.73527]
[1739549884957,0.73526,2719.5,2719.4,0.73527]
[1739549885159,3.60074774,2719.7,2719.0,5.04622]
[1739549885361,3.60074774,2719.7,2719.1,1.83839]
[1739549885760,1.899,2719.8,2719.0,3.2078]
[1739549885956,3.46659292,2719.9,2719.4,1.83814]
[1739549886266,3.46659292,2719.9,2719.8,0.73516]
[1739549886463,4.20173292,2719.9,2719.8,0.73516]
[1739549886960,0.25879292,2719.9,2719.8,0.73516]
[1739549887159,0.9401,2720.0,2719.9,0.73514]
[1739549887360,0.00552283,2720.1,2720.0,0.73511]
[1739549888660,3.2078,2720.9,2720.2,1.83762]
[1739549888864,3.2078,2720.9,2720.2,3.2078]
[1739549889062,0.73492,2720.8,2720.6,0.73494]
[1739549889259,3.2078,2720.9,2720.2,3.2078]
[1739549889760,3.46052772,2720.9,2720.3,0.00552283]
[1739549889959,0.00552283,2720.8,2720.7,0.73492]
[1739549890570,0.74042283,2720.8,2720.6,0.73493]
[1739549890862,0.00552283,2720.8,2720.4,0.735]
[1739549891070,3.93125006,2720.8,2720.3,0.00552283]
[1739549891270,0.73505,2720.3,2720.1,0.72953717]
[1739549891463,3.2078,2720.5,2720.1,0.72953717]
[1739549891464,5.1058,2720.5,2720.1,0.72953717]
[1739549891660,0.9494,2720.4,2719.8,5.04571]
[1739549891863,1.68443,2720.4,2720.2,0.73503]
[1739549892067,1.68443,2720.4,2720.3,0.73503]
[1739549892364,1.6844,2720.4,2720.1,0.00552283]
[1739549892666,1.6844,2720.4,2720.3,0.73503]
[1739549892866,0.9494,2720.4,2720.1,0.00552283]
[1739549893064,0.9494,2720.4,2720.3,0.73503]
[1739549893769,1.898,2720.5,2720.3,0.73501]
[1739549894067,1.898,2720.5,2720.1,0.00552283]
[1739549894365,8.02965006,2720.8,2720.2,3.2078]
[1739549894570,6.00092283,2720.8,2720.7,0.73492]
[1739549894769,6.73583283,2720.8,2720.7,0.73492]
[1739549894973,4.10392283,2720.8,2720.7,0.73492]
[1739549895265,0.89612283,2720.8,2720.7,0.73492]
[1739549895468,0.00552283,2720.8,2720.7,0.73492]
[1739549897371,2.83e-06,2720.8,2720.7,6.73492]
[1739549898878,2.83e-06,2720.8,2720.7,0.73492]
[1739549900270,2.83e-06,2720.8,2720.7,6.73492]
[1739549900471,2.83e-06,2720.8,2720.7,0.73492]
[1739549900870,2.83e-06,2720.8,2720.7,6.73492]
[1739549902071,2.83e-06,2720.8,2720.7,0.73492]
[1739549902674,2.83e-06,2720.8,2720.7,2.63092]
[1739549902972,2.83e-06,2720.8,2720.7,8.63092]
[1739549903568,2.83e-06,2720.8,2720.7,2.63092]
[1739549904269,2.83e-06,2720.8,2720.7,0.73492]
[1739549910467,12.8018966,2720.8,2719.9,3.2078]
[1739549910671,3.2078,2720.5,2719.9,3.2078]
[1739549910868,1.896,2720.5,2719.6,5.4243]
[1739549911066,0.73504,2720.3,2720.1,0.74060283]
[1739549911266,0.73504,2720.3,2720.1,0.74059283]
[1739549911663,3.2078,2720.4,2720.1,0.00552283]
[1739549912174,7.53690377,2720.4,2720.1,0.00552283]
[1739549912373,6.80189377,2720.4,2720.2,0.73504]
[1739549912571,3.59409377,2720.4,2720.3,0.73503]
[1739549913177,12.80189377,2720.4,2720.1,0.00552283]
[1739549913371,6.80189377,2720.4,2720.1,0.00552283]
[1739549913570,6.80189377,2720.4,2720.3,0.73503]
[1739549914177,6.80189377,2720.4,2720.1,0.00552283]
[1739549914374,7.53690377,2720.4,2720.3,0.73503]
[1739549914678,7.53691377,2720.4,2720.2,0.73504]
[1739549914867,6.80189377,2720.4,2720.2,0.73504]
[1739549915071,7.53691377,2720.4,2720.1,0.00552283]
[1739549915468,0.73504,2720.3,2720.2,0.73505]
[1739549915772,0.73505,2720.3,2720.1,0.74058283]
[1739549915974,0.26117782,2720.3,2720.2,0.73506]
[1739549916168,1.8461,2720.7,2720.2,3.2078]
[1739549916479,7.72109377,2720.7,2720.2,3.2078]
[1739549916678,3.59409377,2720.4,2720.1,0.00552283]
[1739549916870,3.59409377,2720.4,2720.2,0.73505]
[1739549916871,0.73504,2720.3,2720.2,0.73505]
[1739549917070,4.32910377,2720.4,2720.3,0.73503]
[1739549917277,4.32910377,2720.4,2720.1,0.00552283]
[1739549917278,0.73504,2720.3,2720.2,0.73504]
[1739549917479,3.59409377,2720.4,2720.1,0.00552283]
[1739549917673,0.73506,2720.2,2720.1,0.00552283]
[1739549919874,6.73506,2720.2,2720.1,0.00552283]
[1739549920983,6.73506,2720.2,2720.1,0.74060283]
[1739549921178,0.73506,2720.2,2720.1,0.00552283]
[1739549921374,1.896,2720.3,2720.1,0.00552283]
[1739549921575,4.54406201,2736.2,2720.6,0.73495]
[1739549921576,7.39709377,2720.7,2720.6,0.73495]
[1739549922076,6.40929377,2720.7,2720.6,0.73495]
[1739549922385,5.24821377,2720.7,2720.6,0.73495]
[1739549922877,0.9192,2720.7,2720.6,0.73495]
[1739549923078,2.83e-06,2720.8,2720.7,0.73492]
[1739549925580,2.83e-06,2720.8,2720.7,10.32901377]
[1739549928380,2.83e-06,2720.8,2720.7,0.73492]
[1739549929783,2.83e-06,2720.8,2720.1,3.5996166]
[1739549929784,2.83e-06,2720.8,2720.6,0.73492]
[1739549929979,2.83e-06,2720.8,2720.1,3.21332283]
[1739549930579,0.73490283,2720.8,2720.6,0.73493]
[1739549930777,2.83e-06,2720.8,2720.1,3.21332283]
[1739549930980,2.83e-06,2720.8,2720.7,0.73492]
[1739549932481,0.73489283,2720.8,2720.7,0.73492]
[1739549932679,0.73489283,2720.8,2720.6,0.73493]
[1739549932884,0.73489283,2720.8,2720.4,3.2078]
[1739549933087,2.83e-06,2720.8,2720.7,0.73492]
[1739549933485,0.00310588,2720.8,2720.7,0.73492]
[1739549934192,0.00310588,2720.8,2719.6,0.3785]
[1739549934495,6.80189377,2719.8,2719.2,4.1327]
[1739549934791,3.59409377,2719.5,2719.4,0.73525]
[1739549935191,1.67171,2719.7,2719.5,0.73523]
[1739549935387,0.73523,2719.6,2719.4,0.73526]
[1739549935582,0.9365,2719.7,2719.2,4.13822283]
[1739549935890,0.73522,2719.6,2719.2,4.13822283]
[1739549936191,0.73522,2719.6,2719.4,0.73525]
[1739549936385,0.9365,2719.7,2719.2,4.13822283]
[1739549936581,0.9365,2719.7,2719.6,0.73522]
[1739549936801,0.9365,2719.7,2719.2,4.13822283]
[1739549936981,0.9365,2719.7,2719.6,0.73522]
[1739549938285,5.48909377,2720.1,2720.0,0.73509]
[1739549938892,5.48909377,2720.1,2719.5,5.04586]
[1739549939197,0.73512,2720.0,2719.5,5.04586]
[1739549939391,0.73512,2720.0,2719.9,0.73514]
[1739549939593,0.26712041,2720.0,2719.5,3.2078]
[1739549939795,0.73515,2719.9,2719.5,3.2078]
[1739549940094,0.73521,2719.7,2719.3,0.9898]
[1739549940296,6.80189377,2719.8,2719.2,0.93042283]
[1739549940490,6.80189377,2719.8,2719.7,0.73519]
[1739549940896,7.53705377,2719.8,2719.7,0.73519]
[1739549941092,3.2078,2719.8,2719.7,0.73519]
[1739549941791,3.59409377,2720.1,2720.0,0.73511]
[1739549941997,3.2078,2720.2,2720.1,0.73508]
[1739549942195,3.2078,2720.2,2719.7,1.83796]
[1739549942395,3.59409377,2720.1,2719.6,1.902]
[1739549942592,3.94296,2719.9,2719.8,0.73516]
[1739549942798,0.73518,2719.8,2719.7,0.73518]
[1739549943190,3.2078,2719.9,2719.3,1.83821]
[1739549943399,3.2078,2719.9,2719.2,2.82542283]
[1739549943400,3.59409377,2720.7,2719.7,3.2078]
[1739549943605,0.73496,2720.6,2720.0,1.83778]
[1739549943904,3.2078,2720.5,2719.8,1.902]
[1739549944095,0.73502,2720.4,2720.3,0.73502]
[1739549944294,3.2078,2720.5,2719.9,1.83785]
[1739549944498,0.73502,2720.4,2719.9,1.83785]
[1739549944697,3.85005969,2720.7,2719.8,1.902]
[1739549945003,3.21090588,2720.8,2720.0,3.2078]
[1739549945196,3.21090588,2720.8,2720.7,0.73492]
[1739549946401,3.94579588,2720.8,2720.7,0.73492]
[1739549946694,0.00310588,2720.8,2720.7,0.73492]
[1739549948799,0.00310588,2720.8,2720.4,1.83747]
[1739549949003,0.00310588,2720.8,2720.7,0.73492]
[1739549950197,0.00310588,2720.8,2720.2,3.2078]
[1739549950496,6.80189377,2720.7,2720.1,0.9344]
[1739549950696,0.73504,2720.3,2720.2,0.73505]
[1739549950897,3.2078,2720.4,2719.8,0.9958]
[1739549951106,3.9428,2720.4,2720.3,0.73503]
[1739549951304,0.73504,2720.3,2720.2,0.73504]
[1739549951501,5.1018,2720.4,2719.6,5.1129]
[1739549951698,3.2078,2720.1,2720.0,0.73511]
[1739549951995,3.94288,2720.1,2720.0,0.73511]
[1739549952200,3.2078,2720.1,2720.0,0.73511]
[1739549952603,1.69664,2720.3,2720.2,0.73506]
[1739549952803,0.73506,2720.2,2720.1,0.73508]
[1739549952998,3.2078,2720.2,2720.1,0.73508]
[1739549953193,12.80189377,2720.2,2718.9,3.2078]
[1739549953396,0.7353,2719.3,2719.0,0.73537]
[1739549953593,4.32944377,2719.2,2718.8,0.73541]
[1739549953908,3.2078,2719.1,2719.0,0.73538]
[1739549954208,3.59409377,2719.2,2718.7,0.9189]
[1739549954209,3.85062741,2719.2,2719.1,0.73535]
[1739549954499,3.85062741,2719.2,2719.0,0.73536]
[1739549954707,3.2078,2719.1,2718.9,0.00552283]
[1739549955007,4.32947377,2719.0,2718.9,0.00552283]
[1739549956311,9.59409377,2719.0,2718.0,0.9294]
[1739549956502,3.59409377,2718.4,2718.2,0.73559]
[1739549956708,3.59409377,2718.4,2718.0,0.9294]
[1739549957009,3.59409377,2718.4,2718.3,0.73557]
[1739549957210,3.59409377,2718.4,2718.2,0.7356]
[1739549957408,0.73561,2718.2,2717.8,0.73568]
[1739549957611,3.59409377,2718.0,2717.2,4.162]
[1739549957907,3.59409377,2718.0,2717.9,0.73568]
[1739549958118,3.59409377,2718.0,2717.2,4.162]
[1739549958305,1.895,2718.2,2718.1,0.73561]
[1739549958695,3.5996166,2718.3,2717.6,3.2078]
[1739549958908,0.00552283,2718.3,2718.2,0.7356]
[1739549959404,0.00552283,2718.3,2717.7,1.9285]
[1739549959602,3.5996166,2718.3,2717.7,1.9285]
[1739549959805,3.5996166,2718.3,2718.0,0.73563]
[1739549959806,4.3351966,2718.3,2718.0,0.73563]
[1739549960003,3.5996166,2718.3,2718.2,0.7356]
[1739549960398,0.00552283,2718.3,2718.2,0.7356]
[1739549960807,3.59409377,2718.9,2718.2,0.9573]
[1739549961004,3.59409377,2718.9,2718.8,0.73543]
[1739549961909,3.59409377,2718.9,2718.2,0.9573]
[1739549962211,3.59409377,2718.5,2718.2,0.9573]
[1739549962412,3.94335,2718.4,2718.2,0.73557]
[1739549962610,3.2078,2718.4,2718.2,0.73557]
[1739549963012,3.94335,2718.4,2718.2,0.73557]
[1739549963212,3.94335,2718.4,2718.2,0.73558]
[1739549963511,3.2078,2718.4,2717.7,1.9285]
[1739549963713,0.73557,2718.3,2718.1,0.73561]
[1739549963912,3.59409377,2718.2,2717.7,0.9897]
[1739549964212,3.59409377,2718.2,2717.8,0.73569]
[1739549964213,3.94342,2718.1,2717.8,0.73569]
[1739549964507,3.2078,2718.1,2718.0,0.74117283]
[1739549965107,4.32962377,2718.5,2718.0,0.00552283]
[1739549965108,3.59409377,2718.5,2718.0,0.00552283]
[1739549965302,5.48909377,2718.8,2718.0,1.84465283]
[1739549965614,5.48909377,2718.8,2718.7,0.73546]
[1739549966010,3.2078,2718.9,2718.3,0.915]
[1739549966208,4.5376166,2719.1,2719.0,0.73538]
[1739549966810,0.00552283,2719.1,2719.0,0.73538]
[1739549967410,3.2078,2719.9,2719.8,0.73516]
[1739549968009,3.2078,2719.9,2719.7,0.73518]
[1739549968315,3.2078,2719.9,2719.2,5.0461]
[1739549968508,0.73518,2719.8,2719.5,0.00552283]
[1739549968709,3.59409377,2719.7,2719.5,0.74074283]
[1739549969016,3.59409377,2719.7,2719.6,0.73522]
[1739549969514,3.59409377,2719.7,2719.5,0.00552283]
[1739549969711,3.59409377,2719.7,2719.6,0.73522]
[1739549970608,3.59409377,2719.7,2719.5,0.00552283]
[1739549970609,4.32929377,2719.7,2719.5,0.00552283]
[1739549970810,3.94302,2719.6,2719.5,0.00552283]
[1739549971116,5.83702,2719.6,2719.5,0.00552283]
[1739549971415,0.73529,2719.4,2719.1,0.73535]
[1739549971710,0.73529,2719.4,2718.6,1.83869]
[1739549971711,0.7354,2719.0,2718.5,0.9958]
[1739549971903,3.59409377,2718.9,2718.7,0.73545]
[1739549972111,6.80189377,2718.9,2718.7,0.73545]
[1739549972414,6.80189377,2718.9,2718.7,0.73544]
[1739549972609,6.80189377,2718.9,2718.8,0.73543]
[1739549972807,6.80189377,2718.9,2718.7,0.73545]
[1739549973007,6.80189377,2718.9,2718.5,1.00132283]
[1739549973214,3.2078,2718.9,2718.8,0.73543]
[1739549973415,2.62935,2719.1,2718.9,0.73541]
[1739549973716,2.62935,2719.1,2718.8,0.73542]
[1739549974210,2.62935,2719.1,2718.5,1.00132283]
[1739549974211,6.80189377,2718.9,2718.5,0.00552283]
[1739549974413,6.80189377,2718.9,2718.7,0.73545]
[1739549974414,7.53731377,2718.9,2718.7,0.73545]
[1739549974807,6.80189377,2718.9,2718.5,0.00552283]
[1739549975012,6.80189377,2718.9,2718.8,0.73543]
[1739549975213,6.80189377,2718.9,2718.5,0.00552283]
[1739549976113,7.53730377,2718.9,2718.7,0.73544]
[1739549976418,3.2078,2718.9,2718.5,0.00552283]
[1739549976613,3.2078,2718.9,2718.8,0.73543]
[1739549977113,1.894,2719.1,2719.0,0.73538]
[1739549977310,6.80189377,2719.2,2719.1,0.73535]
[1739549977514,6.80189377,2719.2,2718.6,2.81873]
[1739549977515,6.80189377,2719.2,2718.7,0.909]
[1739549977707,0.73536,2719.1,2718.9,0.73538]
[1739549977907,6.80189377,2719.2,2718.7,0.909]
[1739549978117,0.7354,2719.0,2718.7,0.909]
[1739549978311,3.59409377,2718.9,2718.7,0.73545]
[1739549978514,0.73543,2718.8,2718.5,0.00552283]
[1739549978910,0.73543,2718.8,2718.7,0.73546]
[1739549979105,6.80189377,2718.9,2718.5,0.00552283]
[1739549979413,0.73544,2718.8,2718.7,0.73545]
[1739549979715,6.80189377,2718.9,2718.5,0.00552283]
[1739549979914,6.80189377,2718.9,2718.6,0.73549]
[1739549980106,0.73544,2718.8,2718.7,0.73545]
[1739549980311,0.73549,2718.6,2718.5,0.74103283]
[1739549980512,6.80189377,2718.6,2718.0,6.90043]
[1739549980710,0.73554,2718.5,2718.4,0.73554]
[1739549980916,6.80189377,2718.6,2718.0,0.9199]
[1739549981113,3.7327,2718.7,2718.1,0.73561]
[1739549981114,3.59409377,2718.2,2718.1,0.73561]
[1739549981315,3.59409377,2718.2,2718.0,0.73565]
[1739549981514,3.59409377,2718.2,2717.6,2.79109]
[1739549981515,3.59409377,2718.2,2718.1,0.73562]
[1739549981813,4.32969377,2718.2,2718.1,0.73562]
[1739549982113,0.73564,2718.1,2717.9,0.73567]
[1739549982316,3.2078,2718.0,2717.6,0.9517]
[1739549982620,3.59409377,2717.9,2717.1,5.04748]
[1739549982819,3.94353,2717.7,2717.1,3.2078]
[1739549983009,3.47238715,2717.7,2717.1,3.2078]
[1739549983209,3.59409377,2717.6,2717.4,0.7358]
[1739549983414,3.59409377,2717.6,2717.5,0.73579]
[1739549983713,3.59409377,2717.6,2717.1,3.2078]
[1739549983919,5.36638715,2717.7,2717.1,3.2078]
[1739549984221,6.10213715,2717.7,2717.1,3.2078]
[1739549984722,6.10213715,2717.7,2717.5,0.73578]
[1739549985021,6.10212715,2717.7,2717.1,3.2078]
[1739549985213,5.36638715,2717.7,2717.6,0.73576]
[1739549985408,5.36638715,2717.7,2717.1,3.2078]
[1739549985612,6.10212715,2717.7,2717.5,0.73577]
[1739549985815,5.36638715,2717.7,2717.5,0.73577]
[1739549986117,6.10212715,2717.7,2717.1,3.2078]
[1739549986316,3.59409377,2717.6,2717.1,3.2078]
[1739549986620,3.59409377,2717.3,2717.2,0.73587]
[1739549987214,3.59409377,2717.3,2717.0,0.9517]
[1739549987419,3.59409377,2717.3,2717.2,0.73587]
[1739549987818,3.59409377,2717.3,2717.0,0.9517]
[1739549988018,4.32993377,2717.3,2717.1,0.73588]
[1739549988523,3.59409377,2717.3,2717.1,0.73588]
[1739549988825,3.59409377,2717.3,2717.2,0.73587]
[1739549989218,4.32993377,2717.3,2717.2,0.73587]
[1739549989418,3.59409377,2717.3,2717.0,0.9517]
[1739549989618,3.59409377,2717.3,2717.2,0.73587]
[1739549990123,4.32993377,2717.3,2717.2,0.73587]
[1739549990918,4.32993377,2717.3,2717.1,0.73589]
[1739549991119,4.32993377,2717.3,2717.2,0.73587]
[1739549991319,3.59409377,2717.3,2717.0,0.9517]
[1739549991618,3.2078,2717.4,2717.0,0.9517]
[1739549991826,0.73587,2717.2,2717.1,0.73588]
[1739549992226,3.59409377,2717.3,2717.0,1.68761]
[1739549992525,0.73604,2716.6,2716.5,0.73605]
[1739549992825,3.94382,2716.7,2716.5,0.73604]
[1739549993028,3.94383,2716.7,2716.3,0.9081]
[1739549993323,3.2078,2716.7,2716.2,0.9744]
[1739549993623,3.59409377,2716.5,2716.2,0.9744]
[1739549994129,3.59409377,2716.5,2716.2,0.73613]
[1739549994130,0.7361,2716.4,2716.2,0.73613]
[1739549994424,5.48809377,2716.5,2716.0,3.2078]
[1739549994822,5.48809377,2716.5,2716.3,0.7361]
[1739549995020,6.22417377,2716.5,2716.3,0.73609]
[1739549995221,6.22417377,2716.5,2716.4,0.73608]
[1739549995721,6.22417377,2716.5,2716.0,3.2078]
[1739549996116,5.48809377,2716.5,2716.4,0.73608]
[1739549996831,3.2078,2716.7,2716.0,3.2078]
[1739549997126,0.73604,2716.6,2716.4,0.73606]
[1739549997319,3.2078,2716.7,2715.9,1.84053]
[1739549997517,3.2078,2716.4,2716.3,0.73611]
[1739549997923,3.9439,2716.4,2716.2,0.73611]